bitfinex-derivatives/quotes_ETHF0:USTF0_20260113
["timestamp","ask_amount","ask_price","bid_price","bid_amount"]
[1768295921755,0.00356554,3140.7,3139.6,1.0834445]
[1768295921953,0.91690546,3140.6,3139.6,1.0834445]
[1768295922148,0.00356554,3140.7,3139.6,1.0834445]
[1768295922348,0.91688754,3140.6,3139.6,1.0834445]
[1768295922656,0.00356554,3140.7,3140.2,1.0834445]
[1768295922951,0.00356554,3140.7,3140.0,1.0834445]
[1768295928562,0.00356554,3140.7,3139.8,1.0834445]
[1768295930163,0.00356554,3140.7,3139.6,0.90116446]
[1768295930364,0.00356554,3140.7,3139.8,1.0834445]
[1768295932168,0.00356554,3140.7,3139.6,1.98460896]
[1768295934867,0.00356554,3140.7,3139.6,1.0834445]
[1768295935054,1.08701004,3140.7,3139.4,0.15942]
[1768295935864,0.00356554,3140.7,3139.4,0.15942]
[1768295936369,0.00356554,3140.7,3139.5,1.0834445]
[1768295936571,0.00356554,3140.7,3139.4,0.15942]
[1768295937471,0.91631926,3140.6,3139.4,1.98460896]
[1768295937671,0.00356554,3140.7,3139.4,1.98460896]
[1768295937871,0.91632033,3140.6,3139.4,1.98460896]
[1768295938073,0.00356554,3140.7,3139.4,1.98460896]
[1768295938265,0.91649807,3140.6,3139.4,1.98460896]
[1768295938573,0.00356554,3140.7,3139.4,0.90116446]
[1768295938766,0.91649823,3140.6,3139.4,0.90116446]
[1768295938969,0.00356554,3140.7,3139.4,0.90116446]
[1768295939169,0.91649824,3140.6,3139.4,0.90116446]
[1768295939470,0.00356554,3140.7,3139.4,0.90116446]
[1768295939668,0.91665618,3140.6,3139.4,0.90116446]
[1768295939870,0.00356554,3140.7,3139.4,0.90116446]
[1768295940065,0.91665616,3140.6,3139.2,1.0834445]
[1768295940265,0.00356554,3140.7,3139.2,1.0834445]
[1768295940466,0.91678397,3140.6,3139.2,1.0834445]
[1768295940667,1.0834445,3140.5,3139.1,0.00389021]
[1768295940969,1.96779493,3140.5,3139.1,0.00389021]
[1768295941169,0.91694006,3140.4,3139.1,0.00389021]
[1768295941366,1.96779493,3140.5,3139.1,0.00389021]
[1768295941570,0.9169439,3140.4,3139.1,0.00389021]
[1768295941771,1.96779493,3140.5,3139.1,0.00389021]
[1768295941967,0.91694339,3140.4,3139.1,0.00389021]
[1768295942167,1.96779493,3140.5,3139.1,0.00389021]
[1768295942468,0.91406443,3140.4,3139.1,0.00389021]
[1768295942666,1.96779493,3140.5,3139.1,0.00389021]
[1768295942873,0.91406462,3140.4,3139.1,0.00389021]
[1768295943074,1.96779493,3140.5,3139.1,0.00389021]
[1768295943374,1.79840185,3140.4,3139.1,0.00389021]
[1768295943580,0.88435043,3140.4,3139.1,0.00389021]
[1768295944569,0.88435043,3140.4,3139.1,1.08733471]
[1768295947277,0.88435043,3140.4,3139.1,0.00389021]
[1768295947579,1.0834445,3140.2,3139.1,0.00389021]
[1768295947779,0.88435043,3140.4,3139.1,0.00389021]
[1768295947982,0.91392517,3140.3,3139.1,0.00389021]
[1768295948280,0.88435043,3140.4,3139.1,0.00389021]
[1768295948577,0.9137822,3140.3,3139.1,0.00389021]
[1768295948773,0.88435043,3140.4,3139.2,1.0834445]
[1768295948968,0.91378188,3140.3,3139.2,1.0834445]
[1768295949176,0.88435043,3140.4,3139.2,1.0834445]
[1768295949473,0.91365733,3140.3,3139.2,1.0834445]
[1768295949674,0.88435043,3140.4,3139.2,1.0834445]
[1768295949876,0.91365732,3140.3,3139.2,1.0834445]
[1768295950080,0.88435043,3140.4,3139.2,1.0834445]
[1768295950380,0.91355498,3140.3,3139.2,1.0834445]
[1768295950583,0.88435043,3140.4,3139.2,1.0834445]
[1768295950774,0.913555,3140.3,3139.2,1.0834445]
[1768295950978,0.88435043,3140.4,3139.2,1.0834445]
[1768295951179,0.91355499,3140.3,3139.2,1.0834445]
[1768295951378,0.88435043,3140.4,3139.2,1.0834445]
[1768295951580,0.91346275,3140.3,3139.2,1.0834445]
[1768295951780,0.88435043,3140.4,3139.2,1.0834445]
[1768295951981,0.91346274,3140.3,3139.2,1.0834445]
[1768295952186,0.88435043,3140.4,3139.2,1.0834445]
[1768295952385,0.91337896,3140.3,3139.2,1.0834445]
[1768295952684,0.88435043,3140.4,3139.2,1.0834445]
[1768295952890,0.91337895,3140.3,3139.2,1.0834445]
[1768295953081,0.88435043,3140.4,3139.1,0.00389021]
[1768295953273,0.91334904,3140.3,3139.1,1.08733471]
[1768295953477,0.88435043,3140.4,3139.1,1.08733471]
[1768295953677,0.91334918,3140.3,3139.1,1.08733471]
[1768295953979,0.88435043,3140.4,3139.1,1.08733471]
[1768295954177,0.91334918,3140.3,3139.1,1.08733471]
[1768295954378,0.88435043,3140.4,3139.1,1.08733471]
[1768295954580,0.91333516,3140.3,3139.1,1.08733471]
[1768295954779,0.88435043,3140.4,3139.1,1.08733471]
[1768295954987,0.91333517,3140.3,3139.1,1.08733471]
[1768295955188,0.88435043,3140.4,3139.1,1.08733471]
[1768295955486,0.91333722,3140.3,3139.1,1.08733471]
[1768295955688,0.88435043,3140.4,3139.1,1.08733471]
[1768295955890,0.91333724,3140.3,3139.1,1.08733471]
[1768295956080,0.88435043,3140.4,3139.1,1.08733471]
[1768295956280,0.91335574,3140.3,3139.1,1.08733471]
[1768295956579,0.88435043,3140.4,3139.1,1.08733471]
[1768295956779,0.91335575,3140.3,3139.1,1.08733471]
[1768295956980,0.88435043,3140.4,3139.1,1.08733471]
[1768295957288,0.91335574,3140.3,3139.1,1.08733471]
[1768295957482,0.88435043,3140.4,3139.1,1.08733471]
[1768295957683,0.91339078,3140.3,3139.1,1.08733471]
[1768295957981,0.88435043,3140.4,3139.1,1.08733471]
[1768295958185,1.08701004,3140.7,3139.7,1.0834445]
[1768295958186,0.00356554,3140.7,3139.7,1.0834445]
[1768295958385,0.91339388,3140.6,3139.7,1.0834445]
[1768295958587,0.00356554,3140.7,3139.7,1.0834445]
[1768295958786,0.91338672,3140.6,3139.7,1.0834445]
[1768295958987,0.00356554,3140.7,3139.7,1.0834445]
[1768295959287,0.91338675,3140.6,3139.3,0.82966933]
[1768295959482,0.00356554,3140.7,3139.5,1.0834445]
[1768295959683,0.91348412,3140.6,3139.5,1.0834445]
[1768295959883,0.00356554,3140.7,3139.5,1.0834445]
[1768295960282,0.91356138,3140.6,3139.5,1.0834445]
[1768295960585,0.00356554,3140.7,3139.5,1.0834445]
[1768295960793,0.91356126,3140.6,3139.5,1.0834445]
[1768295961093,0.00356554,3140.7,3139.8,1.0834445]
[1768295962588,0.00356554,3140.7,3139.6,0.82966933]
[1768295962785,1.0834445,3141.3,3139.6,0.82966933]
[1768295962786,0.86086161,3141.6,3140.3,1.0834445]
[1768295962983,1.7744788,3141.5,3140.3,1.0834445]
[1768295963183,0.91361719,3141.4,3140.3,1.0834445]
[1768295963383,0.91361719,3141.3,3140.3,1.0834445]
[1768295963583,0.91361719,3141.2,3140.3,1.0834445]
[1768295963891,0.91361719,3141.1,3140.3,1.0834445]
[1768295964087,0.91361719,3141.0,3140.3,1.0834445]
[1768295964390,0.00274492,3141.2,3140.3,1.0834445]
[1768295966494,0.00274492,3141.2,3139.9,0.82966933]
[1768295966696,0.00274492,3141.2,3140.4,1.0834445]
[1768295970698,0.86086161,3141.9,3140.4,1.91311383]
[1768295970898,0.91145584,3141.8,3140.7,1.0834445]
[1768295971101,2.4674445,3142.2,3140.7,1.0834445]
[1768295971300,1.99464474,3142.1,3140.7,1.0834445]
[1768295971500,1.0834445,3141.8,3140.5,0.82966933]
[1768295971898,1.08671179,3141.8,3140.5,0.82966933]
[1768295973391,1.08259384,3141.7,3140.8,1.08259384]
[1768295975605,1.08586113,3141.8,3141.0,1.08259384]
[1768295976710,1.08586113,3141.8,3140.9,1.08259384]
[1768295981098,0.83598914,3142.5,3140.9,1.89376052]
[1768295981299,1.08259384,3142.3,3141.4,1.08259384]
[1768295981508,0.83598914,3142.5,3141.4,1.08259384]
[1768295981813,1.08259384,3142.1,3141.4,1.08259384]
[1768295982305,0.0029385,3142.1,3141.4,0.00324657]
[1768295982910,0.0029385,3142.1,3141.5,1.08259384]
[1768295986310,0.0029385,3142.1,3141.6,1.08259384]
[1768295986509,1.08259384,3142.7,3141.8,1.08259384]
[1768295987508,1.0857873,3142.7,3141.8,1.08259384]
[1768295995118,1.0857873,3142.7,3141.4,0.81441325]
[1768295995119,1.08259384,3142.3,3141.4,1.89700709]
[1768295996630,1.08259384,3142.4,3141.4,1.89700709]
[1768295999828,1.08259384,3142.4,3141.4,1.08584041]
[1768296000029,1.08259384,3142.3,3141.4,1.08584041]
[1768296000218,1.08259384,3141.9,3141.4,0.00324657]
[1768296001537,0.8391826,3142.7,3141.4,0.00324657]
[1768296001728,1.08259384,3142.1,3141.4,0.00324657]
[1768296002331,0.8391826,3142.7,3141.4,1.08584041]
[1768296002628,0.8391826,3142.7,3141.8,1.08259384]
[1768296002629,1.0857873,3142.7,3141.8,1.08259384]
[1768296004529,0.00319346,3142.7,3141.8,1.08259384]
[1768296004832,1.08259384,3142.6,3141.8,1.08259384]
[1768296005836,0.00319346,3142.7,3141.4,0.00324657]
[1768296006035,1.08259384,3142.6,3141.8,1.08259384]
[1768296006434,1.08259384,3142.4,3141.6,1.08259384]
[1768296008738,1.08259384,3142.6,3141.6,1.08259384]
[1768296009731,0.00319346,3142.7,3141.8,1.08259384]
[1768296009732,1.0857873,3142.7,3141.8,1.08259384]
[1768296011940,0.00319346,3142.7,3142.0,1.08259384]
[1768296012135,0.00319346,3142.7,3142.2,1.08259384]
[1768296012531,0.00319346,3142.7,3141.6,1.08259384]
[1768296012736,0.00319346,3142.7,3142.1,1.08259384]
[1768296014234,0.00319346,3142.7,3142.0,1.08259384]
[1768296016443,0.00319346,3142.7,3141.6,1.88772561]
[1768296016842,0.00319346,3142.7,3142.0,1.08259384]
[1768296017542,1.08259384,3142.6,3141.4,0.16256657]
[1768296017744,1.08259384,3142.6,3141.7,1.08259384]
[1768296017938,1.08259384,3142.6,3141.4,0.16256657]
[1768296018141,0.00319346,3142.7,3142.5,1.08259384]
[1768296018345,1.92176067,3143.7,3142.5,1.08259384]
[1768296018541,0.908137,3143.6,3143.1,1.08259384]
[1768296018742,0.83916683,3143.7,3142.9,1.08259384]
[1768296018937,0.90807315,3143.6,3142.9,1.08259384]
[1768296019139,0.83916683,3143.7,3142.9,1.08259384]
[1768296019441,1.08259384,3143.4,3142.5,1.08259384]
[1768296019641,0.84158879,3143.7,3142.5,1.08259384]
[1768296019838,1.08259384,3143.5,3142.5,1.08259384]
[1768296020042,0.84158879,3143.7,3142.5,1.08259384]
[1768296020346,1.08259384,3143.5,3142.5,1.08259384]
[1768296021153,0.84158879,3143.7,3142.7,1.08259384]
[1768296021340,0.84158879,3143.7,3142.9,1.08259384]
[1768296022142,0.00242196,3143.7,3142.9,1.08259384]
[1768296022343,0.00242196,3143.7,3143.2,1.08259384]
[1768296023343,0.00242196,3143.7,3142.9,1.08259384]
[1768296023750,0.00242196,3143.7,3143.1,1.08259384]
[1768296026644,1.08259384,3144.3,3143.3,1.08259384]
[1768296026842,1.08259384,3144.1,3143.3,1.08259384]
[1768296027043,1.08259384,3144.1,3143.1,1.08259384]
[1768296027242,0.83916683,3144.5,3142.9,1.90394436]
[1768296027448,1.08259384,3144.2,3143.3,1.08259384]
[1768296027643,1.08259384,3143.8,3142.9,1.08259384]
[1768296028443,0.84176829,3144.2,3142.9,1.08259384]
[1768296028648,1.08259384,3143.9,3142.9,1.08259384]
[1768296029154,0.84176829,3144.2,3142.9,1.08259384]
[1768296029451,0.84176829,3144.2,3143.1,1.08259384]
[1768296029648,0.00260146,3144.2,3143.1,1.08259384]
[1768296029948,1.08259384,3144.1,3142.5,0.82135052]
[1768296030251,1.08259384,3143.9,3143.0,1.08259384]
[1768296031152,1.08259384,3143.7,3142.8,1.08259384]
[1768296031344,1.08259384,3143.7,3142.4,0.15927]
[1768296031545,1.08259384,3143.7,3142.7,1.08259384]
[1768296031745,1.08259384,3143.9,3142.5,1.08259384]
[1768296031746,1.08259384,3143.5,3142.5,1.08259384]
[1768296032040,0.83916683,3143.5,3141.7,0.82135052]
[1768296032246,1.08259384,3143.7,3142.8,1.08259384]
[1768296032443,0.83916683,3143.9,3143.0,1.08259384]
[1768296033755,1.08259384,3143.8,3142.8,1.08259384]
[1768296034854,0.83916683,3143.9,3142.8,1.08259384]
[1768296035158,1.92176067,3143.9,3143.0,1.08259384]
[1768296035353,0.83916683,3143.9,3142.3,0.82231601]
[1768296035550,0.83916683,3143.9,3142.7,1.08103231]
[1768296036676,0.81574118,3143.8,3142.3,1.08103231]
[1768296036975,0.81574118,3143.7,3142.3,1.08103231]
[1768296037966,0.81574118,3143.4,3141.6,2.07831601]
[1768296038168,0.81574118,3143.1,3141.5,3.184]
[1768296038363,0.81574118,3143.1,3141.6,1.08103231]
[1768296038777,0.81574118,3143.1,3141.4,0.16256657]
[1768296038778,0.81574118,3142.8,3141.4,0.00324657]
[1768296040063,0.81574118,3143.2,3142.2,1.08103231]
[1768296040267,0.81574118,3143.2,3141.9,1.08103231]
[1768296041378,0.81574118,3143.2,3141.4,0.82556258]
[1768296041674,0.81574118,3143.2,3142.0,1.08103231]
[1768296044379,0.81574118,3143.2,3142.3,1.08103231]
[1768296046377,0.81574118,3143.2,3142.0,1.08103231]
[1768296047085,0.81574118,3143.2,3141.6,1.90334832]
[1768296047278,0.81574118,3143.2,3142.1,1.08103231]
[1768296049084,0.81574118,3143.2,3141.6,1.90334832]
[1768296049285,0.81574118,3143.2,3141.9,1.08103231]
[1768296053491,0.81574118,3143.2,3141.8,1.08103231]
[1768296054290,0.81574118,3143.2,3142.1,1.08103231]
[1768296055094,0.81574118,3143.2,3141.6,1.90334832]
[1768296055285,0.81574118,3143.6,3142.4,1.08103231]
[1768296056183,0.81574118,3143.6,3142.2,1.08103231]
[1768296056389,1.53518,3144.1,3142.0,1.08103231]
[1768296056390,0.81574118,3143.4,3142.0,1.08103231]
[1768296057185,0.81574118,3143.4,3142.2,1.08103231]
[1768296059395,0.81574118,3143.4,3142.0,1.08103231]
[1768296060490,0.81574118,3143.4,3141.7,0.1593]
[1768296060790,0.81574118,3143.4,3141.4,0.82556258]
[1768296060791,0.00260146,3144.2,3142.4,0.82231601]
[1768296060997,0.00260146,3144.2,3141.4,0.00324657]
[1768296060998,0.00260146,3144.2,3143.0,1.08103231]
[1768296061189,0.00260146,3144.2,3143.3,1.08103231]
[1768296061395,0.00260146,3144.2,3143.4,1.08103231]
[1768296061586,1.375,3145.4,3144.0,1.08103231]
[1768296061587,1.08103231,3145.3,3144.0,1.08103231]
[1768296061785,0.89745928,3145.2,3143.4,1.90334832]
[1768296061991,1.89677349,3145.3,3143.7,1.08103231]
[1768296062190,0.81574118,3145.2,3143.7,1.08103231]
[1768296062809,0.81946722,3145.2,3143.7,1.08378194]
[1768296063293,0.81946722,3145.2,3143.7,0.00274963]
[1768296070308,0.81946722,3145.2,3143.7,0.82267375]
[1768296070309,0.00372604,3145.2,3143.7,0.82267375]
[1768296071611,0.00372604,3145.2,3143.9,2.47271717]
[1768296072602,0.00372604,3145.2,3143.7,0.00274963]
[1768296072803,0.8606815,3145.2,3143.7,0.00274963]
[1768296073201,0.00372604,3145.2,3143.9,0.81992412]
[1768296073400,0.00372604,3145.2,3144.2,1.65279305]
[1768296073806,0.00372604,3145.2,3143.9,0.81992412]
[1768296074297,0.00372604,3145.2,3144.2,1.65279305]
[1768296074506,6.02232912,3147.8,3144.7,0.97907412]
[1768296074713,0.81741595,3147.5,3145.2,1.65279305]
[1768296074907,0.89228556,3147.4,3145.6,1.65279305]
[1768296075208,0.81741595,3147.2,3145.2,0.82422063]
[1768296075397,0.81741595,3147.2,3145.0,1.65279305]
[1768296075604,0.81741595,3147.0,3145.1,0.82422063]
[1768296076001,0.81741595,3147.5,3145.8,1.65279305]
[1768296076408,0.81741595,3147.5,3145.8,2.47701368]
[1768296076604,0.81741595,3147.5,3145.0,0.82422063]
[1768296076803,0.81741595,3147.4,3145.0,0.82422063]
[1768296077405,0.81741595,3147.4,3145.3,1.65279305]
[1768296077610,0.81741595,3147.0,3144.6,0.82422063]
[1768296078305,0.97645595,3147.0,3144.5,1.65279305]
[1768296078910,0.81741595,3146.8,3144.5,1.65279305]
[1768296079106,0.81741595,3146.8,3144.9,1.65279305]
[1768296079312,0.81741595,3146.8,3145.3,1.65279305]
[1768296079913,0.81741595,3146.8,3145.0,0.82422063]
[1768296080706,0.81741595,3146.8,3145.0,2.47701368]
[1768296080908,0.81741595,3146.8,3145.1,0.82422063]
[1768296081118,0.81741595,3147.3,3145.1,0.82422063]
[1768296081707,0.81741595,3147.2,3145.1,0.82422063]
[1768296083816,0.81741595,3147.2,3145.4,1.65279305]
[1768296084205,0.81741595,3147.2,3144.1,0.98340063]
[1768296084405,0.00272031,3147.4,3145.0,1.65279305]
[1768296084406,0.81741595,3147.0,3145.0,1.65279305]
[1768296084613,0.81741595,3147.0,3145.0,2.47701368]
[1768296084814,0.81741595,3147.0,3145.4,1.65279305]
[1768296085113,0.81741595,3147.0,3144.5,2.63617368]
[1768296085321,0.81741595,3147.0,3144.8,1.65279305]
[1768296086112,0.81741595,3146.9,3144.4,1.65279305]
[1768296086310,0.97645595,3146.9,3144.3,1.65279305]
[1768296086610,0.97645595,3146.9,3144.0,0.82422063]
[1768296086611,0.81741595,3146.5,3144.0,3.182]
[1768296086921,0.81741595,3146.4,3143.8,1.65279305]
[1768296087316,0.81741595,3146.1,3143.7,0.00274963]
[1768296087518,0.81741595,3146.1,3143.8,1.65279305]
[1768296087711,0.81741595,3146.1,3144.2,1.65279305]
[1768296090008,0.81741595,3146.1,3145.0,1.65279305]
[1768296090210,0.97647595,3146.6,3145.0,1.65279305]
[1768296090719,0.81741595,3146.6,3145.0,1.65279305]
[1768296091013,0.81741595,3147.3,3145.0,2.47701368]
[1768296091218,0.81741595,3147.1,3145.0,2.47701368]
[1768296091412,0.81741595,3147.1,3145.1,0.82422063]
[1768296092214,0.81741595,3147.1,3144.8,0.15915]
[1768296092620,0.81741595,3147.1,3144.8,0.98337063]
[1768296092821,0.81741595,3147.1,3145.2,1.65279305]
[1768296095417,0.86869173,3147.4,3145.7,1.45609932]
[1768296095817,0.86869173,3147.4,3145.3,0.83364868]
[1768296096012,0.86869173,3147.4,3145.2,0.15912]
[1768296096013,0.86597142,3147.2,3145.5,1.45609932]
[1768296096209,0.86597142,3147.2,3144.7,2.81622805]
[1768296096210,0.86597142,3146.9,3144.6,3.64987673]
[1768296096421,0.86597142,3146.9,3145.0,1.45609932]
[1768296096623,0.86597142,3146.9,3145.3,1.45609932]
[1768296096810,0.86597142,3146.9,3144.9,0.99278868]
[1768296097013,0.86869173,3147.4,3145.9,1.45609932]
[1768296099125,0.86869173,3147.4,3145.7,1.45609932]
[1768296100426,0.86869173,3147.4,3146.0,1.45609932]
[1768296100724,0.86869173,3147.4,3146.0,1.45979542]
[1768296101115,0.86869173,3147.4,3146.0,0.0036961]
[1768296102321,1.74766125,3147.3,3146.0,0.0036961]
[1768296102523,0.00272031,3147.4,3146.6,1.45609932]
[1768296102725,0.86597142,3147.8,3146.9,1.45609932]
[1768296103222,0.15896,3148.5,3146.1,0.99272868]
[1768296103223,1.61505932,3148.5,3146.1,0.99272868]
[1768296103416,0.86597142,3148.3,3146.5,1.45609932]
[1768296103717,0.86597142,3148.1,3146.5,1.45609932]
[1768296103916,1.74751351,3148.0,3146.5,1.45609932]
[1768296104117,0.86597142,3148.0,3146.5,1.45609932]
[1768296105417,0.86597142,3147.9,3146.1,0.15908]
[1768296105623,0.86597142,3147.9,3146.1,1.45609932]
[1768296105924,0.00398761,3148.3,3146.0,0.0036961]
[1768296105925,0.86597142,3147.6,3146.0,0.0036961]
[1768296106722,0.86597142,3147.6,3146.1,1.45609932]
[1768296107129,0.86597142,3147.6,3146.4,1.45609932]
[1768296107429,0.86597142,3147.6,3146.0,0.0036961]
[1768296107430,0.86597142,3148.2,3147.0,1.45609932]
[1768296107629,0.86597142,3148.2,3146.7,1.45609932]
[1768296108328,0.86597142,3148.2,3146.5,1.45609932]
[1768296109018,0.86597142,3148.2,3146.2,0.99271868]
[1768296109222,0.86597142,3148.2,3146.6,1.45609932]
[1768296109821,0.86597142,3148.2,3146.0,0.0036961]
[1768296109822,0.86597142,3147.6,3146.0,0.0036961]
[1768296110023,0.86597142,3147.5,3146.0,0.0036961]
[1768296110631,0.86597142,3147.5,3146.0,1.45979542]
[1768296110931,0.86597142,3147.5,3146.0,0.0036961]
[1768296111527,0.86597142,3147.3,3146.0,0.0036961]
[1768296112526,0.86597142,3147.0,3146.0,0.0036961]
[1768296112727,0.86597142,3147.0,3145.2,1.45609932]
[1768296112922,0.86597142,3147.0,3145.5,1.45609932]
[1768296113126,0.86597142,3147.0,3145.8,1.45609932]
[1768296113525,0.86597142,3147.6,3146.1,1.45609932]
[1768296113726,1.74668928,3147.5,3146.1,0.00298175]
[1768296114028,0.86597142,3147.4,3146.1,0.00298175]
[1768296114426,0.86597142,3147.9,3146.6,1.45609932]
[1768296114826,0.86597142,3147.9,3146.1,0.00298175]
[1768296115022,0.37697527,3148.7,3146.3,0.83364868]
[1768296115228,1.04436051,3149.5,3146.1,6.00298175]
[1768296115229,1.04436051,3149.5,3147.6,0.00427702]
[1768296115526,0.86597142,3149.8,3147.7,4.594]
[1768296115830,3.814,3151.2,3147.9,0.83364868]
[1768296116129,1.45609932,3151.0,3149.1,1.45609932]
[1768296116334,0.00285021,3151.2,3149.2,0.49686083]
[1768296116633,0.00398761,3150.6,3149.3,0.49686083]
[1768296116825,1.45609932,3150.5,3149.4,0.49686083]
[1768296117025,0.00398761,3150.6,3149.1,0.0027529]
[1768296117224,0.86599183,3150.5,3149.1,0.0027529]
[1768296117425,1.45609932,3150.1,3149.1,0.0027529]
[1768296117631,0.15887,3150.3,3147.8,1.45609932]
[1768296117831,0.86597142,3149.6,3147.7,1.45609932]
[1768296118032,1.45609932,3149.4,3147.6,0.83364868]
[1768296118229,0.86597142,3149.4,3147.1,0.83364868]
[1768296118428,0.86597142,3148.8,3146.9,1.45609932]
[1768296118730,2.32207074,3148.3,3146.9,0.00367343]
[1768296118931,0.86597142,3148.2,3146.9,0.00367343]
[1768296119533,0.86858883,3148.8,3147.0,1.45609932]
[1768296119833,2.32207074,3148.5,3146.9,0.00367343]
[1768296120027,0.86597142,3148.4,3146.9,0.00367343]
[1768296120231,0.86597142,3148.1,3146.9,0.00367343]
[1768296120737,0.00261741,3148.8,3146.9,0.00367343]
[1768296120738,0.00261741,3148.8,3147.5,1.45609932]
[1768296120923,0.00261741,3148.8,3147.8,1.45609932]
[1768296121127,0.00261741,3148.8,3147.2,0.83364868]
[1768296121423,0.00261741,3148.8,3147.3,1.45609932]
[1768296121636,0.00261741,3148.8,3147.2,0.83364868]
[1768296121927,0.00261741,3148.8,3147.2,2.289748]
[1768296122240,0.00261741,3148.8,3147.2,0.83364868]
[1768296122540,0.00261741,3148.8,3147.7,1.45609932]
[1768296122837,0.00261741,3148.8,3147.2,2.289748]
[1768296123137,0.00261741,3148.8,3147.0,1.45609932]
[1768296123627,0.00261741,3148.8,3147.4,1.45609932]
[1768296123831,0.00261741,3148.8,3146.9,0.00367343]
[1768296124036,0.00261741,3148.8,3147.0,1.45609932]
[1768296124337,0.00261741,3148.8,3147.3,1.45609932]
[1768296124531,0.00261741,3148.8,3147.6,1.45609932]
[1768296125028,0.00261741,3148.8,3147.0,0.83364868]
[1768296125228,0.00261741,3148.8,3147.5,1.45609932]
[1768296125630,0.00261741,3148.8,3147.3,1.45609932]
[1768296126036,0.00261741,3148.8,3147.6,1.45609932]
[1768296126431,0.00261741,3148.8,3147.5,1.45609932]
[1768296126737,0.00261741,3148.8,3147.4,1.45609932]
[1768296127733,0.00261741,3148.8,3147.7,1.45609932]
[1768296128132,0.89532444,3149.8,3148.3,1.45609932]
[1768296128437,2.35142376,3149.6,3147.7,2.14520665]
[1768296128630,2.35142376,3149.6,3147.7,3.60130597]
[1768296128936,0.89532444,3149.5,3147.7,1.45609932]
[1768296129138,2.35142376,3149.3,3147.4,1.45609932]
[1768296129434,2.35142376,3149.3,3147.7,1.45609932]
[1768296129625,0.00338403,3149.5,3147.7,1.45609932]
[1768296129829,0.00338403,3149.5,3148.0,1.45609932]
[1768296130032,0.00338403,3149.5,3148.3,1.45609932]
[1768296130540,0.00737164,3149.5,3148.3,1.45609932]
[1768296130940,0.00338403,3149.5,3148.3,1.45609932]
[1768296132139,0.00338403,3149.5,3148.4,1.45609932]
[1768296132838,0.00338403,3149.5,3148.2,1.45609932]
[1768296133542,0.00338403,3149.5,3148.5,1.45609932]
[1768296133840,0.00338403,3149.5,3148.4,1.45609932]
[1768296134233,0.00338403,3149.5,3148.7,1.45609932]
[1768296134740,0.00737164,3149.5,3148.2,0.89220665]
[1768296134940,0.00338403,3149.5,3148.2,2.34830597]
[1768296137144,0.00338403,3149.5,3148.3,1.45609932]
[1768296137333,0.00737164,3149.5,3148.2,0.89220665]
[1768296137532,0.00737164,3149.5,3148.3,1.45609932]
[1768296138037,0.00737164,3149.5,3148.2,0.89220665]
[1768296138334,0.00737164,3149.5,3148.1,1.45609932]
[1768296138532,0.00737164,3149.5,3147.9,1.45609932]
[1768296138934,0.00737164,3149.5,3147.7,0.91300225]
[1768296139134,0.00737164,3149.5,3147.9,1.45609932]
[1768296140439,0.94210329,3149.3,3147.3,1.45609932]
[1768296140644,0.15892,3149.3,3147.6,2.36910157]
[1768296140840,0.00398761,3149.2,3148.0,0.91300225]
[1768296141037,0.00338403,3149.5,3148.3,0.91300225]
[1768296141340,0.00338403,3149.5,3148.0,1.253]
[1768296141546,0.00338403,3149.5,3147.8,1.253]
[1768296141838,0.00398761,3149.4,3147.7,0.91300225]
[1768296142439,0.00398761,3149.4,3147.9,1.45609932]
[1768296142843,0.00398761,3149.4,3147.7,0.91300225]
[1768296143043,0.9460909,3149.4,3147.6,1.45609932]
[1768296143434,0.16290761,3149.4,3148.0,1.45609932]
[1768296143946,0.00398761,3149.0,3147.8,2.36910157]
[1768296144535,0.00398761,3149.0,3147.8,0.91300225]
[1768296144939,0.00398761,3149.0,3147.3,2.16600225]
[1768296145143,1.45609932,3149.2,3147.3,2.16600225]
[1768296145144,0.00398761,3148.9,3147.5,1.45609932]
[1768296145844,0.15892,3149.3,3147.6,0.91300225]
[1768296146048,0.00398761,3148.8,3147.6,0.91300225]
[1768296146538,1.46008693,3148.8,3147.1,0.91300225]
[1768296146739,0.94210329,3148.7,3147.1,1.45609932]
[1768296147139,0.94210329,3148.7,3146.9,0.00367343]
[1768296147343,2.39820261,3148.4,3146.9,0.00367343]
[1768296148139,0.94210329,3148.3,3146.9,0.00367343]
[1768296148733,2.39820261,3148.1,3146.9,0.00367343]
[1768296148936,1.45609932,3147.8,3146.9,0.00367343]
[1768296149141,2.39820261,3147.5,3145.6,0.91300225]
[1768296149441,0.94210329,3147.5,3145.7,1.45609932]
[1768296149650,0.94210329,3147.5,3145.6,2.36910157]
[1768296150142,0.94210329,3147.5,3145.6,2.37161985]
[1768296150845,0.94210329,3147.2,3145.6,0.00251828]
[1768296151143,0.94564772,3147.2,3145.8,1.45609932]
[1768296151447,0.00354443,3147.2,3145.8,1.45609932]
[1768296151745,0.00354443,3147.2,3146.4,1.45609932]
[1768296151937,0.00354443,3147.2,3146.0,1.45609932]
[1768296152339,0.00398761,3147.1,3145.6,0.00251828]
[1768296152641,1.46008693,3147.1,3145.6,0.00251828]
[1768296152843,0.00398761,3147.1,3145.9,1.45609932]
[1768296153548,0.00398761,3147.1,3145.6,1.4586176]
[1768296154246,0.00398761,3147.1,3145.7,1.45609932]
[1768296154448,0.00398761,3147.1,3146.0,1.45609932]
[1768296155242,0.00398761,3147.1,3145.7,0.91300225]
[1768296155650,0.00398761,3147.1,3145.6,1.4586176]
[1768296156050,1.45609932,3146.9,3145.6,0.00251828]
[1768296156352,1.0259173,3146.8,3145.6,0.00251828]
[1768296160156,1.0259173,3146.8,3144.7,1.07762452]
[1768296160157,1.0259173,3146.7,3144.7,1.07762452]
[1768296160651,1.0259173,3146.7,3144.3,1.07762452]
[1768296160852,1.0259173,3146.6,3144.6,1.07762452]
[1768296161049,1.0259173,3146.6,3144.6,1.08099845]
[1768296161261,1.0259173,3146.6,3144.6,0.00337393]
[1768296161448,0.00398761,3145.9,3144.6,0.00337393]
[1768296162348,1.02990491,3145.9,3144.6,0.00337393]
[1768296163655,1.02990491,3145.9,3143.6,2.72919652]
[1768296163656,1.1850173,3145.8,3143.6,1.07762452]
[1768296163861,1.1850173,3145.8,3143.1,2.72919652]
[1768296164154,1.0259173,3145.6,3143.2,1.07762452]
[1768296164659,1.0259173,3145.4,3143.2,1.08101274]
[1768296165055,1.0259173,3145.2,3143.2,0.00338822]
[1768296165353,1.0259173,3145.0,3143.2,0.00338822]
[1768296165952,1.0259173,3144.8,3143.2,0.00338822]
[1768296166148,1.0259173,3144.6,3143.2,0.00338822]
[1768296166352,1.0259173,3144.6,3142.2,4.25862452]
[1768296166353,1.0259173,3144.2,3142.2,1.07762452]
[1768296166958,1.0259173,3144.2,3141.7,1.07762452]
[1768296167254,1.0259173,3144.2,3142.0,2.72919652]
[1768296167662,2.8366693,3144.2,3141.7,0.00407677]
[1768296167860,1.0259173,3144.1,3141.7,0.00407677]
[1768296168562,1.0259173,3144.1,3142.1,1.07762452]
[1768296169355,1.0259173,3144.1,3142.4,1.651572]
[1768296170161,1.0259173,3144.1,3142.1,1.07762452]
[1768296170660,0.0037088,3144.8,3142.1,1.07762452]
[1768296170861,0.00398761,3144.1,3142.4,1.651572]
[1768296171065,1.02990491,3144.1,3142.1,1.07762452]